Cogmind - Beta 10.2 @@@ ROGUE MODE // 2020.12.19 @ 10:54:02 Player: Luigi Panache Result: Destroyed by as-83811 with Assembled F-torch Performance ------------- Evolutions (0) 0 Regions Visited (2) 400 Robots Destroyed (8) 40 Value Destroyed (162) 162 Prototype IDs (0) 0 Alien Tech Used (0) 0 Bonus (0) 0 TOTAL SCORE: 602 Bonus ------- None Cogmind --------- Core Integrity 0/250 Matter 292/300 Energy 100/100 System Corruption 0% Temperature Cool (20) Movement Core (100) Ox1 Location -10/Mines Parts ------- > --- POWER (1) -------- (None) > --- PROPULSION (2) --- (None) > --- UTILITY (2) ------ Small Storage Unit > --- WEAPON (2) ------- Light Assault Rifle > --- INVENTORY (6) ---- Light Ion Engine Small Laser Grenade Launcher Grenade Launcher Mining Claw Peak State ------------ > --- POWER ------------ Light Nuclear Core > --- PROPULSION ------- Light Treads Light Treads > --- UTILITY ---------- Improved Heat Sink Small Storage Unit > --- WEAPON ----------- Medium Laser Assault Rifle > --- INVENTORY -------- Light Ion Engine Light Assault Rifle Grenade Launcher [Rating: 11] Favorites ----------- Power Light Nuclear Core Engine Light Ion Engine Power Core Light Nuclear Core Propulsion Light Treads Treads Light Treads Utility Small Storage Unit Device Improved Heat Sink Storage Small Storage Unit Protection Weapon Shielding Weapon Medium Laser Energy Gun Medium Laser Ballistic Gun Assault Rifle Build | -11 -10 -10 ------- Run | Scr Mat Min Slots Evolved . | . . . Power . | . . . Propulsion . | . . . Utility . | . . . Weapon . | . . . Parts Attached 12 | 7 4 1 Power 2 | 1 1 . Engine 1 | 1 . . Core 1 | . 1 . Reactor . | . . . Propulsion 2 | 2 . . Treads 2 | 2 . . Leg . | . . . Wheel . | . . . Hover . | . . . Flight . | . . . Utility 3 | 1 2 . Device 1 | . 1 . Storage 1 | 1 . . Processor . | . . . Hackware . | . . . Protection 1 | . 1 . Artifact . | . . . Weapon 5 | 3 1 1 Energy Gun 2 | 1 1 . Energy Cannon . | . . . Ballistic Gun 3 | 2 . 1 Ballistic Cannon . | . . . Launcher . | . . . Special Weapon . | . . . Impact Weapon . | . . . Slashing Weapon . | . . . Piercing Weapon . | . . . Special Melee Weapon . | . . . Unidentified Prototypes . | . . . Parts Lost 6 | . . 6 Power 1 | . . 1 Propulsion 2 | . . 2 Utility 1 | . . 1 Weapon 2 | . . 2 Highest Loss Streak 4 | . . 4 Average Slot Usage (%) 94 | . 96 91 Engine 1 | . 1 . Core 12 | . 12 13 Treads 26 | . 28 23 Device 1 | . 3 . Storage 14 | . 14 14 Protection 10 | . 8 13 Energy Gun 13 | . 13 13 Ballistic Gun 13 | . 14 11 Naked Turns . | . . . Heaviest Build 14 | 11 14 14 Greatest Support 40 | 40 40 40 Greatest Overweight (x) 3 | . . 3 Average Overweight (x) . | . . . Largest Inventory Capacity 6 | 6 6 6 Average Capacity 5 | 5 6 6 Most Carried 6 | 2 6 6 Average Carried 4 | 1 3 5 Final Capacity 6 | 6 6 6 Final Carried 6 | 2 6 5 Class Distribution -------------------- 100% | Mutant Dominant Class ---------------- Mutant | -10/Materials Mutant | -10/Mines Resources | -11 -10 -10 ----------- Run | Scr Mat Min Matter Collected 382 | 267 108 7 Remotely . | . . . Salvage Created 256 | 21 206 29 Parts 12 | 3 9 . Haulers Intercepted . | . . . Recyclers Shooed . | . . . Parts Field Recycled . | . . . Retrieved Matter . | . . . Parts Self-Destructed . | . . . Prevented . | . . . Kills | -11 -10 -10 ------- Run | Scr Mat Min Combat Hostiles Destroyed 9 | . 7 2 Guns 9 | . 7 2 Classes Destroyed 4 | 1 2 1 Tunneler 1 | 1 . . Swarmer 4 | . 4 . Grunt 3 | . 3 . Assembled 2 | . . 2 Best Kill Streak 3 | 1 3 2 Combat Bots Only 3 | . 3 2 Max Kills in Single Turn 1 | 1 1 1 Gunslinging . | . . . Exploded . | . . . Melee . | . . . Uniques/NPCs Destroyed . | . . . Combat | -11 -10 -10 -------- Run | Scr Mat Min Damage Taken 941 | . 254 687 Core 250 | . 14 236 Absorbed by Shields . | . . . Core Remaining (%) 100 | 100 . . Volleys Fired 46 | 2 22 22 Largest 2 | 2 2 2 Hottest 70 | 70 70 70 Shots Fired 75 | 4 44 27 Gun 75 | 4 44 27 Cannon . | . . . Launcher . | . . . Special . | . . . Kinetic 36 | 2 22 12 Thermal 39 | 2 22 15 Explosive . | . . . Electromagnetic . | . . . Robot Hit Streak 21 | 1 21 4 Robot Miss Streak 4 | 1 4 4 Penetration Max . | . . . Secondary Targets . | . . . Shots Hit Robots 49 | 2 29 18 Core Hits 19 | 1 12 6 Critical Hits . | . . . Critical Kills . | . . . Critical Parts Destroyed . | . . . Melee Attacks . | . . . Impact . | . . . Slashing . | . . . Piercing . | . . . Sneak Attacks . | . . . Combat Hostiles . | . . . Follow-up Attacks . | . . . Damage Inflicted 611 | 51 364 196 Guns 609 | 51 362 196 Cannons . | . . . Explosions . | . . . Melee . | . . . Ramming 2 | . 2 . Kinetic 232 | 26 149 57 Thermal 377 | 25 213 139 Explosive . | . . . Electromagnetic . | . . . Impact . | . . . Slashing . | . . . Piercing . | . . . Highest Corruption . | . . . Average Corruption . | . . . Corruption Purged . | . . . Overload Shots . | . . . Overflow Damage . | . . . Projectiles . | . . . Explosions . | . . . Melee . | . . . Knockbacks . | . . . Impact . | . . . Kinetic . | . . . Secondary . | . . . Self-Inflicted Damage . | . . . Shots . | . . . Rammed 2 | . 1 1 Targets Rammed 2 | . 1 1 Kicked . | . . . Crushed . | . . . Highest Temperature 170 | 18 156 170 Average Temperature 58 | 10 56 66 Received Heat Transfer 239 | . 99 140 Siege Activations . | . . . Robots Corrupted . | . . . Combat Hostiles . | . . . Parts Fried . | . . . Impact Corruptions . | . . . Robots Melted . | . . . Combat Hostiles . | . . . Parts Melted 2 | . 2 . Heat Transferred 1110 | 74 629 407 Parts Sabotaged . | . . . Parts Stolen . | . . . Parts Stripped . | . . . Power Chain Reactions . | . . . Missiles Intercepted . | . . . Alert | -11 -10 -10 ------- Run | Scr Mat Min Peak Influence 225 | 5 225 24 Initial 9 | . 3 9 Average 61 | 1 108 12 Maximum Alert Level 1 | . 1 . Low Security (%) 93 | 100 87 100 Level 1 6 | . 12 . Level 2 . | . . . Level 3 . | . . . Level 4 . | . . . Level 5 . | . . . High Security . | . . . Max Security . | . . . Squads Dispatched 1 | . 1 . Investigation . | . . . Extermination . | . . . Reinforcement 1 | . 1 . Assault . | . . . Garrison . | . . . Intercept . | . . . Construction Impeded . | . . . Haulers Reinforced . | . . . Stealth | -11 -10 -10 --------- Run | Scr Mat Min Distress Signals . | . . . Communications Jammed . | . . . Distress Signals . | . . . Times Spotted 17 | . 12 5 Peak Tracking Total 3 | . 3 2 Tactical Retreats 1 | . 1 . Traps | -11 -10 -10 ------- Run | Scr Mat Min Traps Triggered 1 | . 1 . Indirectly . | . . . Trap Hack Attempts . | . . . Triggered . | . . . Disarmed . | . . . Reprogrammed . | . . . Reused . | . . . Traps Extracted . | . . . Installed . | . . . Triggered . | . . . Machines | -11 -10 -10 ---------- Run | Scr Mat Min Machines Disabled . | . . . Max in Single Turn . | . . . Machines Sabotaged . | . . . Garrisons Compromised . | . . . Overloaded Fab Kills . | . . . Fab Network Shutdowns . | . . . Hacking | -11 -10 -10 --------- Run | Scr Mat Min Machines Accessed 3 | . 3 . Terminals 2 | . 2 . Fabricators . | . . . Repair Stations 1 | . 1 . Recycling Units . | . . . Scanalyzers . | . . . Garrison Access . | . . . Total Hacks 8 | . 8 . Successful 7 | . 7 . Failed 1 | . 1 . Catastrophic . | . . . Database Lockouts . | . . . Manual 4 | . 4 . Terminals 6 | . 6 . Fabricators . | . . . Repair Stations 2 | . 2 . Recycling Units . | . . . Scanalyzers . | . . . Garrison Access . | . . . Terminal Hacks 4 | . 4 . Part Schematic 1 | . 1 . Robot Analysis 1 | . 1 . Terminal Index 1 | . 1 . Hauler Manifests 1 | . 1 . Fabricator Hacks . | . . . Repair Station Hacks 2 | . 2 . Scan Component 1 | . 1 . Repair 1 | . 1 . Recycling Unit Hacks . | . . . Scanalyzer . | . . . Garrison Access Hacks . | . . . Unauthorized Hacks 1 | . 1 . Terminals 1 | . 1 . Botnet 1 | . 1 . Fabricators . | . . . Repair Stations . | . . . Recycling Units . | . . . Scanalyzers . | . . . Garrison Access . | . . . Data Cores Recovered . | . . . Used . | . . . Hacking Detections 2 | . 2 . Full Trace Events . | . . . Feedback Events . | . . . Feedback Blocked . | . . . Robot Schematics Acquired . | . . . Robots Built . | . . . Matter . | . . . Time . | . . . Total Robot Build Rating . | . . . Part Schematics Acquired 1 | . 1 . Parts Built . | . . . Matter . | . . . Time . | . . . Total Part Build Rating . | . . . Parts Repaired 1 | . 1 . Time 26 | . 26 . Parts Recycled . | . . . Recycled Matter . | . . . Retrieved Matter . | . . . Retrieved Components . | . . . Parts Scanalyzed . | . . . Part Schematics Acquired . | . . . Parts Damaged . | . . . Bothacking | -11 -10 -10 ------------ Run | Scr Mat Min Used RIF Installer . | . . . Robots Hacked . | . . . Non-combat . | . . . Combat . | . . . Robot Hacks Applied . | . . . Relay Couplers Released . | . . . Robots Rewired . | . . . Allies Hacked . | . . . Hacks Repelled . | . . . Allies | -11 -10 -10 -------- Run | Scr Mat Min Total Allies . | . . . Largest Group . | . . . Highest-Rated Group . | . . . Highest-Rated Ally . | . . . Total Orders . | . . . Ally Attacks . | . . . Total Damage . | . . . Kills . | . . . Allies Corrupted . | . . . Allies Melted . | . . . Intel | -11 -10 -10 ------- Run | Scr Mat Min Robot Analysis Total 1 | . 1 . Derelict Logs Recovered 1 | . . 1 Drone Launches . | . . . Drone Recoveries . | . . . Exploration | -11 -10 -10 ------------- Run | Scr Mat Min Turns Passed 822 | 84 427 311 Spaces Moved 386 | 46 178 162 Core 11 | 5 . 6 Treads 375 | 41 178 156 Legs . | . . . Wheels . | . . . Hover . | . . . Flight . | . . . Fastest Speed 50 | 50 160 150 Average Speed 158 | 148 160 160 Slowest Speed 200 | 160 160 200 Overloaded Moves . | . . . Propulsion Burnouts . | . . . Robots Hopped . | . . . Cave-ins Triggered . | . . . Exploration Rate (%) 30 | 4 38 50 Regions Visited 2 Branch Regions 1 Pre-discovered Areas . | . . . Known Exits Taken . | . . . Unknown Exits Taken 2 | 1 1 . Scrap Searched . | . . . Spaces Dug . | . . . Terrain Destroyed . | . . . Melee . | . . . Projectile . | . . . AOE . | . . . Terrain Rammed . | . . . Walls Destroyed . | . . . Machines Disabled . | . . . Actions | -11 -10 -10 --------- Run | Scr Mat Min Total 517 | 55 275 187 Wait 66 | . 65 1 Move 384 | 45 177 162 Hop . | . . . Pick Up 5 | 1 4 . Fast Attach 10 | 6 4 . Attach 1 | . . 1 Detach . | . . . Swap 1 | 1 . . Drop 2 | . 2 . Fire 46 | 2 22 22 Melee . | . . . Ram . | . . . Kick . | . . . Crush 2 | . 1 1 Escape Stasis . | . . . Rewire . | . . . Trap . | . . . Miscellaneous . | . . . Route ------- -11/Scrapyard -10/Materials (discovered 2 exits: [*Mat] / [*Min]) -10/Mines History --------- Turn | Location | Event 61 | -11/Scrapyard | Discovered new exit (range 16) 85 | -11/Scrapyard | Entered Materials 200 | -10/Materials | Repaired Med. Laser 316 | -10/Materials | Build established: Mutant 406 | -10/Materials | Discovered new exit (range 8) 499 | -10/Materials | Discovered new exit (range 6) 512 | -10/Materials | Entered Mines 534 | -10/Mines | Met a Derelict bent on vengeance 623 | -10/Mines | Learned location of 1 exit from Materials 630 | -10/Mines | Assembled infested the area 759 | -10/Mines | Core integrity fell below 50% 815 | -10/Mines | Core integrity fell below 20% 823 | -10/Mines | Destroyed by as-83811 with Assembled F-torch Last Messages --------------- squad. 00663_ YI-UF0 mumbles something. 00669_ The unstable cave ceiling collapses. 00674_ Slammed into YI-UF0. 00675_ The unstable cave ceiling collapses. 00680_ YI-UF0: "BWOOM!" 00680_ YI-UF0 destroyed. 00682_ Acquired 7 matter. 00685_ The unstable cave ceiling collapses. 00756_ Assault Rifle destroyed. 00763_ Lgt. Treads destroyed. 00765_ Core Extractor disabled. 00767_ as-17880 destroyed. 00775_ as-84093 destroyed. 00777_ The unstable cave ceiling collapses. 00796_ Critical hit. 00796_ Lgt. Treads destroyed. 00802_ Lgt. Nuclear Core destroyed. 00808_ Weapon Shielding destroyed. 00811_ Med. Laser destroyed. Map ----- +----------------------------------------------------+ | ###?# #??????????????????????????????????????????? | | ### #??????????????????????????????????????????? | | #??????????????????????????????????????????? | | ###????????????????????????????????????????? | | # #####????????# ??????????????????????????? | | # ## ##???????# ?????????????????????????? | | % #???????? ?????????????????????????? | | ##??????? ?????????????????????????? | | # ##?????? ##???????????????????????? | | # # ##????? ##?????????????????????? | | # # #?????? ?????????????????????? | | # # #?????? ##????????????????????? | | #### ##?????? % #????????????????????? | | ##???## ###??????#a #????????????????????? | | ??????### % ## ##????##* ?????????????????????? | | ??#####?# #???## * ##????????????????????? | | ?## ### # #???# = #????????????????????? | | ?# ##??# #????????????????????? | | ?# ###### #????????????????????? | | ?# """ # #### ##????????????????????? | | ?# "" #### #????????????????????? | | ?## """ % a ##????????????????????? | | ??# % ## # #?????????????????????? | | ?## ### ##### #?????????????????????? | | ?# ##?#######??# #?????????????????????? | | # #???????????# @ #?????????????????????? | | #?????????# ##?????????????????????? | | ## #????????# #?????????????????????? | | #?## #????????# #?????????????????????? | | #???# ##????????# ##?????????????????????? | | #????## ###?????????## ##??????????????????????? | | ??????####????????????###????????????????????????? | | ?????????????????????????????????????????????????? | | | | | | | | | | | | | | | | | | | | | | | | | | | | | | | | | | | +----------------------------------------------------+ Best States ------------- Heat Dissipation 39 Energy Generation 14 Energy Capacity 160 Matter Stores 300 Matter Capacity 300 Sight Range 16 Terrain Scan Density 10 Weapon Shielding 33 Evasion (%) 40 Recoil Reduction 2 Item Schematics ----------------- Hcp. Storage Unit | -10/Materials | Hacked Robot Schematics ------------------ None Fabricated ------------ Nothing Alien Tech Used ----------------- None Achievements -------------- None Challenges ------------ None Game ------ Seed TachyonHypervelocitySource Manual? 0 Play Time 00:08:44 Cumulative 151.8 hours Start 2020.12.19 @ 10:34:52 End 2020.12.19 @ 10:54:02 Sessions 1 Manual Loads 0 Difficulty Rogue Special Mode None Game No. 133 Rogue 39 Adventurer 52 Explorer 42 Win Type - Total 8 Types 8/0/0/0/0/0/0/0/0 Lore% 59 Gallery% 74 Achievement% 57 Wizard Run 0 Options --------- ASCII 0 Keyboard 0 Movement Numpad Keybinds 0 Fullscreen 2 Font 18/TerminusBold Map View 76x50 Tactical HUD 1 Map Filters NONE Filters NONE Steam 1 RUN: a3847687-4559-4858-8d29-51d0f52f2f73